bitfinex-derivatives/quotes_BTCF0:USTF0_20241117
["timestamp","ask_amount","ask_price","bid_price","bid_amount"]
[1731842119400,0.055094,90749.0,90747.0,1.5]
[1731842119809,0.18445368,90759.0,90748.0,1.02608851]
[1731842119998,0.18445368,90759.0,90749.0,1.02608851]
[1731842120199,0.055092,90752.0,90750.0,1.02608851]
[1731842120406,0.055092,90752.0,90751.0,1.02608851]
[1731842121198,0.00013515,90758.0,90751.0,1.02608851]
[1731842121199,0.05509,90757.0,90751.0,1.02608851]
[1731842121406,0.05509,90757.0,90747.0,1.5]
[1731842121407,0.0051,90760.0,90754.0,0.4608324]
[1731842121708,0.05509,90756.0,90755.0,1.00355104]
[1731842122005,0.74645,90756.0,90755.0,0.45783238]
[1731842122213,0.74645,90756.0,90755.0,0.73194973]
[1731842122415,0.055091,90754.0,90750.0,0.32951755]
[1731842122710,0.055091,90754.0,90747.0,0.32951755]
[1731842122898,0.3608,90748.0,90735.0,0.39544741]
[1731842123201,0.3608,90748.0,90733.0,0.39549648]
[1731842123202,0.055102,90735.0,90733.0,0.39549648]
[1731842123394,0.055102,90735.0,90716.0,0.0307]
[1731842123395,0.41730201,90736.0,90726.0,0.39993648]
[1731842123598,0.055107,90727.0,90726.0,0.00444]
[1731842125413,0.415907,90727.0,90726.0,0.00444]
[1731842125915,0.05511,90723.0,90722.0,0.00012335]
[1731842126404,0.38579,90723.0,90722.0,0.00012335]
[1731842128802,0.74659,90723.0,90722.0,0.00012335]
[1731842129003,1.04659,90723.0,90722.0,3.5e-07]
[1731842132902,0.58463,90723.0,90722.0,3.5e-07]
[1731842133213,0.91531,90723.0,90722.0,3.5e-07]
[1731842133406,0.58463,90723.0,90722.0,3.5e-07]
[1731842133903,0.41591,90723.0,90722.0,3.5e-07]
[1731842135308,0.41591,90723.0,90722.0,1.50000035]
[1731842136822,0.74659,90723.0,90722.0,3.5e-07]
[1731842137406,1.20855,90723.0,90722.0,3.5e-07]
[1731842139016,0.90855,90723.0,90722.0,3.5e-07]
[1731842139414,1.20855,90723.0,90722.0,3.5e-07]
[1731842139617,1.20864468,90723.0,90722.0,3.5e-07]
[1731842141112,0.055117,90710.0,90709.0,3.5e-07]
[1731842141418,0.415917,90710.0,90709.0,3.5e-07]
[1731842142516,0.746637,90710.0,90709.0,3.5e-07]
[1731842143314,0.415917,90710.0,90709.0,3.5e-07]
[1731842143822,0.25041513,90710.0,90709.0,3.5e-07]
[1731842144015,0.30553213,90710.0,90709.0,0.19709272]
[1731842144212,0.30553213,90710.0,90709.0,3.5e-07]
[1731842145326,0.055117,90710.0,90709.0,3.5e-07]
[1731842146020,0.055117,90710.0,90709.0,1.50000035]
[1731842146412,0.055117,90710.0,90709.0,3.5e-07]
[1731842153609,0.055117,90710.0,90709.0,0.00387938]
[1731842153816,0.055117,90710.0,90709.0,0.00624604]
[1731842154013,0.055117,90710.0,90709.0,0.0101487]
[1731842154624,0.055117,90710.0,90709.0,0.0408487]
[1731842154813,0.055117,90710.0,90709.0,0.0408184]
[1731842155931,0.055125,90697.0,90696.0,0.19799833]
[1731842156115,0.3608,90697.0,90694.0,0.19799833]
[1731842156425,0.055127,90695.0,90694.0,0.19799833]
[1731842156815,0.055127,90695.0,90693.0,0.19799833]
[1731842157131,0.36220001,90697.0,90692.0,0.00011606]
[1731842157423,0.055128,90693.0,90692.0,0.00011606]
[1731842159522,0.055128,90693.0,90692.0,0.2635536]
[1731842159727,0.3608,90702.0,90692.0,0.00011606]
[1731842159928,0.3608,90702.0,90699.0,0.1980393]
[1731842160137,0.055123,90701.0,90700.0,1.5]
[1731842160523,0.055123,90701.0,90700.0,1.6980393]
[1731842160722,0.055123,90701.0,90700.0,1.5]
[1731842160931,0.055123,90701.0,90700.0,1.69802723]
[1731842161129,0.055123,90701.0,90700.0,1.5]
[1731842162128,0.36224,90702.0,90698.0,0.19803828]
[1731842162324,0.055125,90697.0,90696.0,0.19803828]
[1731842162533,0.055125,90697.0,90695.0,0.19803828]
[1731842162842,0.055124,90699.0,90695.0,0.19805168]
[1731842163026,0.055124,90699.0,90696.0,0.19805168]
[1731842163228,0.055126,90696.0,90695.0,0.19805168]
[1731842163427,0.055126,90696.0,90692.0,0.00011606]
[1731842163428,0.055126,90696.0,90694.0,0.19805168]
[1731842163829,0.055126,90696.0,90695.0,0.32968337]
[1731842164033,0.055126,90696.0,90695.0,0.78472276]
[1731842164433,0.055126,90696.0,90695.0,0.32968337]
[1731842164637,0.055126,90696.0,90695.0,0.78476418]
[1731842164824,0.055126,90696.0,90695.0,0.78468044]
[1731842165144,0.055127,90694.0,90692.0,0.00011606]
[1731842165437,0.3608,90693.0,90692.0,0.00011606]
[1731842168983,0.3608,90693.0,90692.0,0.33028222]
[1731842169179,0.3608,90693.0,90692.0,0.45687695]
[1731842169380,0.055127,90694.0,90692.0,0.45687695]
[1731842169581,0.055127,90694.0,90693.0,1.95676089]
[1731842169785,0.3608,90703.0,90693.0,1.95676089]
[1731842169987,0.415922,90703.0,90702.0,0.33046732]
[1731842170395,0.415922,90703.0,90702.0,0.45420992]
[1731842170893,0.055124,90700.0,90699.0,0.26437307]
[1731842171685,0.36228,90703.0,90699.0,0.26437307]
[1731842171890,0.36228,90703.0,90701.0,0.26436485]
[1731842172082,0.055121,90704.0,90702.0,0.26436115]
[1731842172277,0.055121,90704.0,90703.0,0.26434266]
[1731842172685,0.0051,90707.0,90703.0,0.26434266]
[1731842172881,0.417357,90711.0,90706.0,0.2643308]
[1731842173083,0.415917,90711.0,90708.0,0.26432715]
[1731842173285,0.3608,90711.0,90708.0,0.52860642]
[1731842173488,0.0051,90712.0,90710.0,0.6250725]
[1731842173681,0.0051,90717.0,90711.0,0.33072]
[1731842173885,9.468e-05,90723.0,90714.0,0.26426885]
[1731842174211,9.468e-05,90723.0,90722.0,0.55888439]
[1731842174387,9.468e-05,90723.0,90722.0,0.3608]
[1731842175295,9.468e-05,90723.0,90722.0,2.12475353]
[1731842176099,0.055107,90728.0,90722.0,2.12475353]
[1731842176393,0.0051,90730.0,90723.0,0.26370884]
[1731842176594,0.0051,90730.0,90729.0,0.1977803]
[1731842176894,0.055103,90734.0,90729.0,0.1977803]
[1731842177099,0.055103,90734.0,90730.0,0.3608]
[1731842178901,0.055103,90734.0,90730.0,0.55831753]
[1731842179133,0.055104,90733.0,90732.0,0.19751981]
[1731842182398,0.385744,90733.0,90731.0,0.3779223]
[1731842182599,0.33064,90732.0,90731.0,0.3143903]
[1731842182902,0.33064,90732.0,90730.0,0.50070494]
[1731842183086,0.385745,90731.0,90730.0,0.44425594]
[1731842183594,0.685745,90731.0,90730.0,0.18149398]
[1731842183796,0.685745,90731.0,90729.0,0.31694904]
[1731842183998,0.9016666,90730.0,90729.0,0.31694904]
[1731842184494,0.9016666,90730.0,90729.0,0.25275204]
[1731842184796,1.2016666,90730.0,90729.0,0.05584204]
[1731842184989,1.2016666,90730.0,90729.0,4e-08]
[1731842185190,1.2016666,90730.0,90728.0,0.79048218]
[1731842185191,0.055106,90729.0,90728.0,0.51961893]
[1731842185388,0.63472333,90729.0,90728.0,0.46148993]
[1731842185698,0.93472333,90729.0,90728.0,0.2941556]
[1731842185898,1.20122304,90729.0,90728.0,0.1458726]
[1731842186101,1.62472127,90729.0,90728.0,0.1458726]
[1731842186299,1.82035728,90729.0,90712.0,0.72480338]
[1731842186599,1.1068397,90728.0,90727.0,0.61392495]
[1731842186806,0.81382465,90728.0,90727.0,0.43243998]
[1731842186989,0.81382465,90728.0,90721.0,0.53023207]
[1731842186990,0.05511,90722.0,90721.0,0.53023207]
[1731842187192,0.55363193,90722.0,90721.0,0.53023207]
[1731842187495,1.56321153,90722.0,90721.0,0.53023207]
[1731842189100,1.56321153,90722.0,90721.0,0.37141843]
[1731842189303,0.055113,90718.0,90717.0,0.58862628]
[1731842189498,0.90002145,90718.0,90717.0,0.58862628]
[1731842189696,2.06843949,90718.0,90717.0,0.58862628]
[1731842190101,2.39389316,90718.0,90717.0,0.58862628]
[1731842190300,2.06843949,90718.0,90717.0,0.58118086]
[1731842191199,1.76843949,90718.0,90717.0,0.58118086]
[1731842191404,1.92507949,90718.0,90717.0,0.58118086]
[1731842191702,1.91882253,90718.0,90717.0,0.58118086]
[1731842192293,1.6584543,90718.0,90717.0,0.58118086]
[1731842192594,1.86233885,90718.0,90717.0,0.58118086]
[1731842192792,1.6584543,90718.0,90717.0,0.58118086]
[1731842193606,1.86248814,90718.0,90717.0,0.58118086]
[1731842193802,1.70729235,90718.0,90717.0,0.58118086]
[1731842194199,1.47945839,90718.0,90717.0,0.58118086]
[1731842194703,1.63348824,90718.0,90717.0,0.58118086]
[1731842195408,1.47684824,90718.0,90717.0,0.58118086]
[1731842195599,1.32281749,90718.0,90717.0,0.61378086]
[1731842195898,1.46302964,90718.0,90717.0,0.61378086]
[1731842196097,1.21407623,90718.0,90717.0,0.61378086]
[1731842196293,1.37688258,90718.0,90717.0,0.61378086]
[1731842196710,1.21407623,90718.0,90717.0,0.61378086]
[1731842196898,1.26769647,90718.0,90717.0,0.61378086]
[1731842197301,0.57578852,90718.0,90717.0,0.0326]
[1731842199209,0.77126798,90718.0,90717.0,0.0326]
[1731842199699,0.055113,90717.0,90716.0,0.32940535]
[1731842199905,0.10873324,90717.0,90716.0,0.32940535]
[1731842200214,0.30421095,90717.0,90716.0,0.32940535]
[1731842200424,0.49970005,90717.0,90716.0,0.32940535]
[1731842200808,0.30421095,90717.0,90716.0,0.32940535]
[1731842201808,0.055122,90703.0,90702.0,0.0313]
[1731842202003,0.055126,90696.0,90694.0,0.0301]
[1731842202501,0.10875645,90696.0,90694.0,0.0301]
[1731842203100,0.25057125,90696.0,90694.0,0.0301]
[1731842203303,0.05363216,90695.0,90694.0,0.0301]
[1731842203610,0.10726456,90695.0,90694.0,0.0301]
[1731842203910,0.10726457,90695.0,90694.0,0.0301]
[1731842205899,0.00373227,90695.0,90694.0,0.0301]
[1731842206105,0.16283706,90696.0,90694.0,0.0301]
[1731842206307,0.11283706,90696.0,90694.0,0.0301]
[1731842206790,0.13029784,90695.0,90694.0,0.0301]
[1731842207083,0.11283706,90696.0,90694.0,0.0301]
[1731842207478,0.055127,90695.0,90694.0,0.0301]
[1731842207784,0.055124,90700.0,90694.0,1.5301]
[1731842207981,0.13033992,90695.0,90694.0,1.5301]
[1731842208286,0.055125,90698.0,90694.0,1.5301]
[1731842208485,0.055126,90697.0,90694.0,1.5301]
[1731842209490,0.0051,90703.0,90694.0,1.5301]
[1731842209491,0.19544624,90702.0,90694.0,1.5301]
[1731842209678,0.055126,90696.0,90694.0,1.5301]
[1731842210474,0.055128,90693.0,90692.0,0.00011606]
[1731842211588,0.20501031,90693.0,90692.0,0.00011606]
[1731842211792,0.28314781,90693.0,90692.0,0.00011606]
[1731842211994,0.43357855,90693.0,90692.0,1.201e-05]
[1731842212287,0.37962209,90693.0,90692.0,1.201e-05]
[1731842213080,0.20501031,90693.0,90692.0,1.201e-05]
[1731842213285,0.64459065,90693.0,90692.0,1.201e-05]
[1731842213489,0.7944673,90693.0,90692.0,1.201e-05]
[1731842213677,0.7944662,90693.0,90692.0,1.201e-05]
[1731842213876,0.56581031,90693.0,90692.0,1.201e-05]
[1731842215786,0.415928,90693.0,90692.0,1.201e-05]
[1731842217296,0.055129,90692.0,90677.0,0.0306]
[1731842217488,0.055139,90675.0,90674.0,0.0308]
[1731842217991,0.69164,90675.0,90650.0,0.3608]
[1731842218190,0.13057774,90657.0,90650.0,0.415954]
[1731842218387,0.3608,90666.0,90650.0,0.415954]
[1731842218388,0.18572874,90656.0,90650.0,0.36092828]
[1731842218593,0.13057774,90655.0,90650.0,0.36092828]
[1731842218791,0.13057774,90651.0,90650.0,0.36092828]
[1731842219186,0.055153,90652.0,90650.0,0.36092828]
[1731842219590,0.055153,90652.0,90651.0,1.5]
[1731842219983,0.13057774,90653.0,90651.0,1.5]
[1731842220194,0.13057774,90654.0,90651.0,1.5]
[1731842220496,0.0051,90661.0,90651.0,1.5]
[1731842220497,0.13057774,90655.0,90651.0,1.5]
[1731842220702,0.13057774,90655.0,90650.0,0.36092828]
[1731842220703,0.055153,90652.0,90650.0,0.00012828]
[1731842221683,0.13026707,90652.0,90650.0,0.00012828]
[1731842221890,0.13026707,90656.0,90650.0,0.00012828]
[1731842222084,0.13026707,90657.0,90650.0,0.00012828]
[1731842222296,0.05951314,90661.0,90656.0,0.3608]
[1731842222297,0.13026707,90659.0,90656.0,0.3608]
[1731842222499,0.00140001,90666.0,90656.0,0.3608]
[1731842222500,0.0051,90666.0,90656.0,0.3608]
[1731842222799,0.0051,90666.0,90660.0,0.055147]
[1731842222998,0.0051,90666.0,90656.0,0.3608]
[1731842223199,0.0051,90666.0,90665.0,0.3608]
[1731842223405,0.0051,90673.0,90666.0,0.055144]
[1731842224001,0.0051,90673.0,90667.0,0.0614]
[1731842224588,0.00165527,90676.0,90673.0,0.05514]
[1731842224799,0.19586661,90691.0,90673.0,0.3608]
[1731842225095,0.19586661,90696.0,90680.0,0.055135]
[1731842225297,0.19586661,90694.0,90683.0,0.055134]
[1731842225500,0.05363226,90693.0,90681.0,1.5]
[1731842225799,0.00012603,90688.0,90685.0,0.055132]
[1731842226002,0.00012603,90688.0,90681.0,1.5]
[1731842228102,0.00012603,90688.0,90683.0,0.3608]
[1731842229008,0.00012603,90688.0,90686.0,0.055132]
[1731842229703,0.00012603,90688.0,90683.0,0.3608]
[1731842229908,0.00012603,90688.0,90686.0,0.055132]
[1731842232510,0.00012603,90688.0,90687.0,0.3608]
[1731842233105,0.00012603,90688.0,90687.0,0.6916]
[1731842233910,0.19586661,90711.0,90701.0,0.055123]
[1731842234120,0.05362118,90710.0,90704.0,0.3608]
[1731842234309,0.05362118,90709.0,90704.0,0.3608]
[1731842234510,0.00079,90712.0,90704.0,0.3608]
[1731842234717,0.05362083,90711.0,90705.0,1.5]
[1731842234912,0.00011712,90710.0,90705.0,1.5]
[1731842235120,0.00011712,90710.0,90706.0,0.05512]
[1731842235911,0.00011712,90710.0,90708.0,0.055118]
[1731842238719,0.00011712,90710.0,90709.0,9.21e-05]
[1731842239322,0.00011712,90710.0,90709.0,1.5000921]
[1731842239819,0.00011712,90710.0,90709.0,1.8308121]
[1731842240525,0.0051,90717.0,90709.0,2.27113413]
[1731842240828,0.0051,90717.0,90716.0,0.415914]
[1731842241030,0.00675414,90724.0,90723.0,0.05511]
[1731842241326,0.00165414,90724.0,90723.0,0.05511]
[1731842241538,0.0051,90731.0,90729.0,0.055105]
[1731842241722,0.0051,90731.0,90723.0,1.5]
[1731842241723,7.891e-05,90734.0,90733.0,0.055103]
[1731842244928,0.0051,90745.0,90744.0,0.055097]
[1731842245132,0.00165348,90750.0,90748.0,0.055094]
[1731842245334,0.00165348,90750.0,90749.0,1.5]
[1731842245928,0.00165348,90750.0,90748.0,0.055094]
[1731842245929,0.1641949,90750.0,90748.0,0.055094]
[1731842246133,0.00175491,90750.0,90748.0,0.055094]
[1731842246725,0.00175491,90750.0,90744.0,0.3608]
[1731842247045,0.00175491,90750.0,90748.0,0.055094]
[1731842249633,0.00010143,90750.0,90748.0,0.055094]
[1731842251023,0.0051,90756.0,90749.0,0.80159405]
[1731842251240,0.16244248,90769.0,90766.0,0.055083]
[1731842251428,0.16244248,90770.0,90768.0,0.3608]
[1731842251629,0.05358798,90769.0,90768.0,0.3608]
[1731842251826,0.16227337,90771.0,90768.0,0.3608]
[1731842252027,0.00011071,90773.0,90769.0,0.05515908]
[1731842252229,0.00011071,90773.0,90770.0,0.055081]
[1731842252625,0.00011071,90773.0,90771.0,1.55508]
[1731842253735,0.00011071,90773.0,90772.0,0.3608]
[1731842253933,0.0016532,90775.0,90773.0,0.055079]
[1731842254529,0.0016532,90775.0,90771.0,1.5]
[1731842255138,0.0016532,90775.0,90774.0,0.3608]
[1731842255326,0.0016532,90775.0,90774.0,0.415879]
[1731842255526,0.0016532,90775.0,90774.0,0.746359]
[1731842255728,0.0016532,90775.0,90774.0,0.415879]
[1731842255930,9.053e-05,90782.0,90774.0,0.11016309]
[1731842256134,9.053e-05,90782.0,90771.0,1.5]
[1731842256334,0.055075,90781.0,90771.0,1.5]
[1731842256652,0.055075,90781.0,90771.0,1.55508]
[1731842257223,9.053e-05,90782.0,90772.0,0.05508]
[1731842257829,9.053e-05,90782.0,90775.0,0.055078]
[1731842258428,0.3608,90780.0,90770.0,0.3608]
[1731842258636,0.3608,90780.0,90754.0,0.02205068]
[1731842258637,0.055089,90758.0,90754.0,0.02205068]
[1731842258845,0.3608,90763.0,90739.0,0.02205068]
[1731842259134,0.3608,90763.0,90742.0,0.05557603]
[1731842259333,0.3608,90763.0,90740.0,0.11015824]
[1731842259334,0.055091,90754.0,90740.0,0.11015824]
[1731842259528,0.055091,90754.0,90739.0,0.02205068]
[1731842259727,0.055089,90758.0,90751.0,0.36093793]
[1731842260237,0.055089,90757.0,90751.0,0.36093793]
[1731842260438,0.3608,90763.0,90751.0,0.36093793]
[1731842260646,0.055091,90754.0,90751.0,0.36093793]
[1731842260830,0.055091,90754.0,90751.0,0.12938393]
[1731842261136,0.055091,90753.0,90751.0,0.12938393]
[1731842261836,0.055091,90753.0,90751.0,0.12948708]
[1731842262034,0.055091,90753.0,90751.0,0.00010315]
[1731842264337,0.52307337,90755.0,90751.0,0.00010315]
[1731842264338,0.36220001,90755.0,90751.0,0.00010315]
[1731842264541,0.3608,90755.0,90751.0,0.00010315]
[1731842266842,0.3608,90755.0,90752.0,1.5]
[1731842267235,0.055091,90753.0,90752.0,1.5]
[1731842267431,0.3608,90755.0,90753.0,0.055091]
[1731842268239,0.3608,90755.0,90754.0,0.1101898]
[1731842268939,0.3608,90755.0,90754.0,1.6101898]
[1731842269337,0.055092,90752.0,90751.0,0.00010315]
[1731842269638,0.00144,90763.0,90755.0,0.05509]
[1731842269846,0.055084,90766.0,90756.0,1.5]
[1731842270249,0.0318,90767.0,90757.0,0.055089]
[1731842270444,0.0318,90767.0,90756.0,1.5]
[1731842271039,0.0318,90767.0,90757.0,0.055089]
[1731842271551,0.0318,90767.0,90756.0,1.5]
[1731842271853,0.36730001,90774.0,90758.0,0.11017826]
[1731842272039,0.3608,90774.0,90769.0,0.055082]
[1731842272240,0.3608,90774.0,90764.0,0.0051]
[1731842272442,0.415879,90774.0,90764.0,0.12404]
[1731842272952,0.415879,90774.0,90765.0,0.11016977]
[1731842273151,0.3608,90774.0,90765.0,0.11016977]
[1731842273851,0.0051,90780.0,90771.0,0.3608]
[1731842274050,9.053e-05,90782.0,90771.0,0.3608]
[1731842274438,9.053e-05,90782.0,90774.0,0.055078]
[1731842274646,9.053e-05,90782.0,90776.0,0.055077]
[1731842275047,9.053e-05,90782.0,90771.0,0.42098]
[1731842275253,9.053e-05,90782.0,90777.0,1.5]
[1731842276247,0.055076,90779.0,90777.0,1.5]
[1731842276444,0.30451674,90779.0,90777.0,1.5]
[1731842276641,0.05508,90773.0,90771.0,0.1291]
[1731842276838,0.1632335,90772.0,90771.0,0.124]
[1731842277043,0.1632335,90772.0,90765.0,0.0051]
[1731842277044,0.1632278,90773.0,90765.0,0.0051]
[1731842277240,0.055083,90767.0,90765.0,0.0051]
[1731842277544,0.055083,90767.0,90748.0,0.124]
[1731842277545,0.055087,90760.0,90759.0,0.0051]
[1731842277744,0.10867657,90760.0,90752.0,1.5051]
[1731842277953,0.05358957,90759.0,90754.0,0.02205079]
[1731842278151,0.08648957,90759.0,90754.0,0.02205079]
[1731842278451,0.08648957,90759.0,90752.0,0.0051]
[1731842278652,0.28234584,90759.0,90752.0,0.0051]
[1731842278957,0.44728957,90759.0,90752.0,0.0051]
[1731842279845,0.5624554,90759.0,90752.0,0.0051]
[1731842281464,0.055091,90753.0,90752.0,0.0051]
[1731842281751,0.055096,90746.0,90745.0,0.0051]
[1731842281963,0.055099,90741.0,90737.0,0.0051]
[1731842282143,0.055099,90741.0,90729.0,0.12565319]
[1731842282144,0.16316566,90738.0,90731.0,0.11018251]
[1731842282348,0.055099,90741.0,90730.0,0.0051]
[1731842282349,0.16316566,90741.0,90735.0,0.055102]
[1731842282546,0.13051293,90738.0,90730.0,0.0051]
[1731842282751,0.13051293,90739.0,90733.0,0.3608]
[1731842283055,0.36220001,90746.0,90731.0,7.758e-05]
[1731842283056,0.13051293,90738.0,90731.0,7.758e-05]
[1731842283258,0.18561393,90738.0,90731.0,7.758e-05]
[1731842283446,0.13051293,90736.0,90731.0,7.758e-05]
[1731842284160,0.055102,90737.0,90731.0,7.758e-05]
[1731842285245,0.055102,90737.0,90736.0,1.5]
[1731842285846,0.055097,90744.0,90736.0,1.5]
[1731842286056,0.3608,90746.0,90736.0,1.61020923]
[1731842286354,0.3608,90746.0,90738.0,0.0551]
[1731842286559,0.3608,90746.0,90737.0,0.0309]
[1731842286753,0.3608,90746.0,90736.0,1.5]
[1731842286949,0.0551,90739.0,90736.0,1.52205341]
[1731842287260,0.3608,90746.0,90736.0,1.52205341]
[1731842287261,0.055101,90738.0,90736.0,1.52205341]
[1731842290070,0.055101,90738.0,90736.0,1.5]
[1731842290360,0.415901,90738.0,90736.0,1.5]
[1731842290857,0.055104,90732.0,90731.0,7.758e-05]
[1731842291866,0.055104,90732.0,90731.0,0.00307758]
[1731842292169,0.055104,90732.0,90731.0,0.00407758]
[1731842292362,0.055104,90732.0,90725.0,0.0051]
[1731842292363,0.055108,90726.0,90725.0,0.0051]
[1731842292555,0.055111,90720.0,90719.0,0.0051]
[1731842292750,0.055111,90720.0,90716.0,0.72211]
[1731842292751,0.055113,90717.0,90716.0,0.72211]
[1731842293453,0.055113,90717.0,90716.0,0.72223446]
[1731842294868,0.056113,90717.0,90716.0,0.72223446]
[1731842295657,0.057113,90717.0,90716.0,0.72223446]
[1731842296861,0.057113,90717.0,90716.0,2.22223446]
[1731842297456,0.057113,90717.0,90716.0,0.72223446]
[1731842297964,0.387833,90717.0,90716.0,0.72223446]
[1731842299155,0.387833,90717.0,90713.0,0.0051]
[1731842299156,0.33272,90717.0,90713.0,0.0051]
[1731842299355,0.3608,90714.0,90694.0,0.055127]
[1731842299660,0.002,90717.0,90695.0,1.5]
[1731842299661,0.3608,90706.0,90695.0,1.5]
[1731842300265,0.3608,90706.0,90700.0,0.00012909]
[1731842300464,0.055123,90702.0,90700.0,0.00012909]
[1731842300760,0.3608,90714.0,90700.0,0.00012909]
[1731842300952,0.055116,90713.0,90704.0,0.055121]
[1731842301154,0.055116,90713.0,90700.0,0.00012909]
[1731842301155,0.3608,90714.0,90700.0,0.00012909]
[1731842301457,0.001,90706.0,90700.0,0.00012909]
[1731842302759,0.05612,90706.0,90700.0,0.00012909]
[1731842303190,0.001,90706.0,90700.0,0.00012909]
[1731842303391,0.001,90706.0,90700.0,0.36092909]
[1731842303587,0.001,90706.0,90704.0,0.055121]
[1731842303784,0.001,90706.0,90705.0,0.0303]
[1731842303985,0.3608,90714.0,90705.0,0.36106]
[1731842304189,8.244e-05,90718.0,90705.0,0.36106]
[1731842304190,8.244e-05,90718.0,90716.0,0.055113]
[1731842304392,8.244e-05,90718.0,90717.0,1.61812]
[1731842304786,8.244e-05,90718.0,90717.0,1.72836993]
[1731842305689,0.00108244,90718.0,90717.0,1.72836993]
[1731842307684,8.244e-05,90718.0,90717.0,1.72836993]
[1731842308869,8.244e-05,90718.0,90717.0,1.61812]
[1731842309081,8.244e-05,90718.0,90717.0,1.5]
[1731842309375,0.055117,90710.0,90709.0,0.19753366]
[1731842309674,0.415917,90710.0,90709.0,0.19753366]
[1731842310557,0.416917,90710.0,90709.0,0.19753366]
[1731842314874,0.001,90710.0,90709.0,0.19753366]
[1731842315576,0.001,90710.0,90709.0,1.69753366]
[1731842315771,0.001,90710.0,90709.0,0.19753366]
[1731842317975,0.13156454,90710.0,90709.0,0.19753366]
[1731842318569,0.001,90710.0,90709.0,0.19753366]
[1731842318774,0.1315953,90710.0,90709.0,0.19753366]
[1731842319497,0.055122,90704.0,90702.0,0.19757612]
[1731842320679,0.056122,90704.0,90702.0,0.19757612]
[1731842321389,0.05362526,90703.0,90702.0,0.19757612]
[1731842322991,0.05362526,90703.0,90702.0,1.69757612]
[1731842323188,0.05462526,90703.0,90702.0,1.69757612]
[1731842323381,0.16432084,90703.0,90702.0,1.69757612]
[1731842323591,0.001,90703.0,90702.0,1.69757612]
[1731842323896,0.13166533,90703.0,90702.0,1.69757612]
[1731842324202,0.13166533,90703.0,90702.0,1.72947612]
[1731842324578,0.262333,90703.0,90702.0,1.72947612]
[1731842324786,0.13166533,90703.0,90702.0,1.72947612]
[1731842327193,0.13166533,90703.0,90702.0,1.69757612]
[1731842327595,0.262333,90703.0,90702.0,1.69757612]
[1731842328294,0.13166533,90703.0,90702.0,1.69757612]
[1731842329489,0.001,90703.0,90702.0,1.5]
[1731842329687,0.0051,90709.0,90702.0,1.94101054]
[1731842329895,0.0051,90709.0,90708.0,0.415919]
[1731842330095,0.0051,90715.0,90713.0,0.055116]
[1731842330296,8.244e-05,90718.0,90717.0,0.055113]
[1731842330493,8.244e-05,90718.0,90717.0,0.415913]
[1731842330694,8.244e-05,90718.0,90717.0,1.915913]
[1731842333699,8.244e-05,90718.0,90717.0,1.555113]
[1731842335094,8.244e-05,90718.0,90717.0,1.61127743]
[1731842335698,8.244e-05,90718.0,90717.0,1.72387743]
[1731842336096,8.244e-05,90718.0,90717.0,1.83410974]
[1731842336598,0.0051,90722.0,90721.0,0.055111]
[1731842336794,0.0051,90728.0,90717.0,1.97689]
[1731842337000,0.0051,90733.0,90727.0,0.055107]
[1731842337195,0.13231977,90736.0,90727.0,0.055107]
[1731842337495,0.00165366,90736.0,90718.0,0.0051]
[1731842337701,0.00165366,90736.0,90734.0,0.3608]
[1731842338002,0.00165366,90736.0,90723.0,0.3608]
[1731842338003,0.00165366,90736.0,90732.0,0.055104]
[1731842338300,0.0051,90738.0,90735.0,0.19789326]
[1731842338507,0.00013679,90739.0,90734.0,0.055103]
[1731842338693,0.00013679,90739.0,90735.0,1.5]
[1731842338898,0.00013679,90739.0,90738.0,0.0551]
[1731842341095,0.00013679,90739.0,90738.0,1.5]
[1731842344615,0.0051,90743.0,90739.0,0.0551]
[1731842344805,0.0331,90761.0,90739.0,0.032]
[1731842345004,0.0331,90761.0,90749.0,0.3608]
[1731842345200,0.0331,90761.0,90749.0,0.47336]
[1731842345402,0.055092,90752.0,90744.0,0.11256]
[1731842345610,0.05521779,90752.0,90738.0,1.5]
[1731842345815,0.00012579,90752.0,90738.0,1.5]
[1731842345999,0.3608,90747.0,90735.0,0.11256]
[1731842346309,0.00012579,90752.0,90739.0,0.1101989]
[1731842346616,0.00012579,90752.0,90750.0,0.055093]
[1731842348312,0.00012579,90752.0,90741.0,0.055099]
[1731842348713,0.00012579,90752.0,90742.0,0.055098]
[1731842349407,0.00012579,90752.0,90743.0,0.11019708]
[1731842349713,0.00012579,90752.0,90746.0,0.055095]
[1731842350110,0.00012579,90752.0,90741.0,0.16880563]
[1731842350609,0.00012579,90752.0,90751.0,0.055093]
[1731842351806,0.00144,90756.0,90751.0,0.50721299]
[1731842352006,0.00144,90756.0,90755.0,0.41589]
[1731842352318,0.13066611,90772.0,90755.0,1.98458957]
[1731842352505,0.13066611,90771.0,90756.0,0.01122957]
[1731842352710,0.13066611,90772.0,90766.0,0.055083]
[1731842353218,0.49146611,90774.0,90766.0,0.055083]
[1731842353423,0.00010446,90775.0,90772.0,0.05508]
[1731842353719,0.00010446,90775.0,90764.0,0.415884]
[1731842354415,0.00010446,90775.0,90765.0,0.11016431]
[1731842354922,0.00010446,90775.0,90757.0,0.055089]
[1731842355104,0.13077057,90775.0,90755.0,2.0289414]
[1731842355303,0.3608,90771.0,90756.0,0.1217093]
[1731842355606,0.13066611,90767.0,90755.0,1.5555814]
[1731842355813,0.13066611,90770.0,90757.0,0.11016855]
[1731842356014,0.13066611,90769.0,90757.0,0.11016855]
[1731842356213,0.49146611,90771.0,90755.0,1.5555814]
[1731842356516,0.49146611,90771.0,90758.0,0.11017948]
[1731842356517,0.13066611,90770.0,90758.0,0.11017948]
[1731842356711,0.13066611,90770.0,90755.0,1.5555814]
[1731842356712,0.055083,90767.0,90755.0,1.5555814]
[1731842356917,0.13066611,90764.0,90755.0,1.5555814]
[1731842357317,0.13066611,90763.0,90755.0,1.5555814]
[1731842357617,0.13066611,90764.0,90755.0,1.5555814]
[1731842358520,0.52413459,90771.0,90755.0,1.5555814]
[1731842358521,0.3608,90763.0,90755.0,1.5555814]
[1731842358720,0.3608,90763.0,90755.0,1.5]
[1731842359025,0.3608,90763.0,90755.0,1.55509]
[1731842359211,0.055081,90770.0,90755.0,1.55509]
[1731842360816,0.3608,90771.0,90756.0,0.11017766]
[1731842361116,0.00010446,90775.0,90756.0,0.11017766]
[1731842361117,0.00520446,90775.0,90764.0,0.3608]
[1731842361321,0.00010446,90775.0,90764.0,0.3608]